fUST/lending_fUST_20250910
["ID","MTS","AMOUNT","RATE_DAILY","PERIOD"]
[384606585,1757475032247,-300.0,0.00013559,2]
[384606586,1757475032256,-300.0,0.00013559,2]
[384606587,1757475032267,-1200.0,0.00013559,2]
[384606588,1757475032414,-4960.75631747,0.0001356,2]
[384606589,1757475032424,-801.90524277,0.00013598,2]
[384606590,1757475032433,-152.62793451,0.00013598,2]
[384606591,1757475032443,-1000.0,0.0001369,2]
[384606592,1757475032453,-151.0,0.0001369,2]
[384606593,1757475032463,-151.0,0.0001369,2]
[384606594,1757475032473,-151.0,0.0001369,2]
[384606595,1757475032482,-1000.0,0.0001369,2]
[384606596,1757475032492,-151.0,0.0001369,2]
[384606597,1757475032502,-151.0,0.0001369,2]
[384606598,1757475032512,-907.93728302,0.0001369,2]
[384606599,1757475032522,-151.0,0.0001369,2]
[384606600,1757475032531,-151.0,0.0001369,2]
[384606601,1757475032540,-151.0,0.0001369,2]
[384606602,1757475032549,-151.0,0.0001369,2]
[384606603,1757475032559,-151.0,0.0001369,2]
[384606604,1757475032568,-156.09409718,0.0001369,2]
[384606605,1757475032577,-151.0,0.0001369,2]
[384606606,1757475032587,-151.0,0.0001369,2]
[384606607,1757475032596,-151.0,0.0001369,2]
[384606608,1757475032607,-151.0,0.0001369,2]
[384606609,1757475032619,-151.0,0.0001369,2]
[384606610,1757475032630,-151.0,0.0001369,2]
[384606611,1757475032640,-151.0,0.0001369,2]
[384606612,1757475032649,-151.0,0.0001369,2]
[384606613,1757475032658,-151.0,0.0001369,2]
[384606614,1757475032667,-250.0,0.0001369,2]
[384606615,1757475032676,-151.0,0.0001369,2]
[384606616,1757475032685,-250.0,0.0001369,2]
[384606617,1757475032694,-151.0,0.0001369,2]
[384606618,1757475032704,-2030.296672,0.0001369,2]
[384606620,1757475032714,-151.0,0.0001369,2]
[384606622,1757475032723,-250.0,0.0001369,2]
[384606624,1757475032732,-151.0,0.0001369,2]
[384606626,1757475032741,-250.0,0.0001369,2]
[384606628,1757475032750,-151.0,0.0001369,2]
[384606630,1757475032759,-215.73296481,0.0001369,2]
[384606632,1757475032768,-155.64538639,0.0001369,2]
[384606634,1757475032777,-250.0,0.0001369,2]
[384606636,1757475032786,-250.0,0.0001369,2]
[384606638,1757475032795,-250.0,0.0001369,2]
[384606639,1757475032805,-250.0,0.0001369,2]
[384606640,1757475032814,-168.62990327,0.0001369,2]
[384606641,1757475032826,-81.37009673,0.0001369,2]
[384606642,1757475032835,-250.0,0.0001369,2]
[384606643,1757475032845,-0.74793329,0.0001369,2]
[384606644,1757475032856,-249.25206671,0.0001369,2]
[384606645,1757475032866,-250.0,0.0001369,2]
[384606646,1757475032875,-250.0,0.0001369,2]
[384606647,1757475032885,-158.80228099,0.00013697,2]
[384606648,1757475032894,-500.0,0.00013697,2]
[384606649,1757475032904,-500.0,0.00013697,2]
[384606650,1757475032913,-49.41121993,0.00013697,2]
[384606669,1757475038122,-332.98736554,0.00013697,2]
[384606670,1757475038132,-500.0,0.00013697,2]
[384606671,1757475038142,-500.0,0.00013697,2]
[384606672,1757475038151,-500.0,0.00013697,2]
[384606673,1757475038160,-500.0,0.00013697,2]
[384606674,1757475038171,-250.0,0.00013697,2]
[384606675,1757475038179,-169.55545101,0.00013697,2]
[384606676,1757475038189,-500.0,0.00013697,2]
[384606677,1757475038198,-500.0,0.00013697,2]
[384606678,1757475038207,-480.0,0.00013698,2]
[384606679,1757475038216,-480.0,0.00013698,2]
[384606680,1757475038225,-255.52095575,0.00013698,2]
[384606681,1757475038234,-180.67861415,0.00013698,2]
[384606683,1757475038243,-392.16436216,0.00013698,2]
[384606684,1757475038252,-480.0,0.00013698,2]
[384606685,1757475038261,-480.0,0.00013698,2]
[384606687,1757475038269,-480.0,0.00013698,2]
[384606688,1757475038279,-480.0,0.00013698,2]
[384606690,1757475038289,-181.51569195,0.00013698,2]
[384606692,1757475038298,-482.60993904,0.00013698,2]
[384606694,1757475038307,-480.0,0.00013698,2]
[384606696,1757475038317,-486.6657806,0.00013698,2]
[384606698,1757475038326,-480.0,0.00013698,2]
[384606700,1757475038335,-302.93562152,0.00013698,2]
[384606702,1757475038344,-480.0,0.00013698,2]
[384606704,1757475038354,-480.0,0.00013698,2]
[384606706,1757475038363,-480.0,0.00013698,2]
[384606708,1757475038372,-485.07840626,0.00013698,2]
[384606710,1757475038382,-484.07400614,0.00013698,2]
[384606712,1757475038397,-480.0,0.00013698,2]
[384606714,1757475038406,-481.23296154,0.00013698,2]
[384606717,1757475038415,-482.52956425,0.00013698,2]
[384606719,1757475038424,-481.2395993,0.00013698,2]
[384606721,1757475038433,-491.76446696,0.00013698,2]
[384606723,1757475038443,-232.11340239,0.00013698,2]
[384606725,1757475038453,-483.40523942,0.00013698,2]
[384606727,1757475038462,-480.0,0.00013698,2]
[384606729,1757475038471,-480.0,0.00013698,2]
[384606731,1757475038480,-480.0,0.00013698,2]
[384606733,1757475038490,-480.0,0.00013698,2]
[384606735,1757475038498,-482.1026469,0.00013698,2]
[384606737,1757475038508,-484.88734171,0.00013698,2]
[384606739,1757475038517,-486.73967394,0.00013698,2]
[384606741,1757475038526,-480.0,0.00013698,2]
[384606743,1757475038535,-483.68851825,0.00013698,2]
[384606745,1757475038544,-480.0,0.00013698,2]
[384606747,1757475038554,-484.63220642,0.00013698,2]
[384606749,1757475038563,-480.0,0.00013698,2]
[384606773,1757475038779,-480.0,0.00013698,2]
[384606775,1757475038789,-480.0,0.00013698,2]
[384606777,1757475038799,-480.0,0.00013698,2]
[384606779,1757475038809,-491.20062485,0.00013698,2]
[384606781,1757475038818,-480.0,0.00013698,2]
[384606783,1757475038828,-480.0,0.00013698,2]
[384606785,1757475038837,-480.0,0.00013698,2]
[384606787,1757475038846,-480.0,0.00013698,2]
[384606789,1757475038856,-484.53466525,0.00013698,2]
[384606791,1757475038866,-480.0,0.00013698,2]
[384606793,1757475038875,-480.0,0.00013698,2]
[384606795,1757475038885,-480.0,0.00013698,2]
[384606797,1757475038895,-480.0,0.00013698,2]
[384606799,1757475038904,-480.0,0.00013698,2]
[384606801,1757475038914,-480.0,0.00013698,2]
[384606804,1757475038924,-177.7503558,0.00013698,2]
[384606805,1757475038933,-480.0,0.00013698,2]
[384606807,1757475038942,-480.0,0.00013698,2]
[384606809,1757475038952,-480.0,0.00013698,2]
[384606811,1757475038961,-480.0,0.00013698,2]
[384606813,1757475038970,-480.0,0.00013698,2]
[384606815,1757475038980,-480.0,0.00013698,2]
[384606817,1757475038990,-480.0,0.00013698,2]
[384606819,1757475038999,-456.61127488,0.00013698,2]
[384606821,1757475039008,-480.0,0.00013698,2]
[384606823,1757475039019,-480.0,0.00013698,2]
[384606825,1757475039028,-480.0,0.00013698,2]
[384606827,1757475039037,-480.0,0.00013698,2]
[384606830,1757475039047,-480.0,0.00013698,2]
[384606832,1757475039056,-480.0,0.00013698,2]
[384606834,1757475039066,-480.0,0.00013698,2]
[384606836,1757475039075,-480.0,0.00013698,2]
[384606838,1757475039085,-480.0,0.00013698,2]
[384606839,1757475039097,-480.0,0.00013698,2]
[384606841,1757475039107,-480.0,0.00013698,2]
[384606843,1757475039117,-480.0,0.00013698,2]
[384606845,1757475039126,-480.0,0.00013698,2]
[384606847,1757475039135,-245.50463067,0.00013698,2]
[384606849,1757475039145,-480.0,0.00013698,2]
[384606851,1757475039154,-391.26475129,0.00013698,2]
[384606853,1757475039163,-480.0,0.00013698,2]
[384606855,1757475039173,-480.0,0.00013698,2]
[384606858,1757475039183,-626.58335917,0.00013698,2]
[384606859,1757475039192,-173.26400369,0.00013698,2]
[384606861,1757475039202,-480.0,0.00013698,2]
[384606863,1757475039211,-480.0,0.00013698,2]
[384606865,1757475039221,-565.81969064,0.00013698,2]
[384606867,1757475039230,-49.34482866,0.00013698,2]
[384606870,1757475039244,-430.65517134,0.00013698,2]
[384606872,1757475039255,-480.0,0.00013698,2]
[384606874,1757475039265,-480.0,0.00013698,2]
[384606876,1757475039274,-480.0,0.00013698,2]
[384606878,1757475039283,-63.75206908,0.00013698,2]
[384607214,1757475043048,-302.0,0.0001356,2]
[384607548,1757475046122,-3450.54281655,0.0001356,2]
[384607550,1757475046131,-416.24793092,0.00013698,2]
[384607552,1757475046141,-480.0,0.00013698,2]
[384607554,1757475046150,-480.0,0.00013698,2]
[384607556,1757475046159,-480.0,0.00013698,2]
[384607558,1757475046169,-480.0,0.00013698,2]
[384607560,1757475046178,-480.0,0.00013698,2]
[384607576,1757475046313,-480.0,0.00013698,2]
[384607578,1757475046322,-502.13405692,0.00013698,2]
[384607580,1757475046331,-480.0,0.00013698,2]
[384607582,1757475046341,-480.0,0.00013698,2]
[384607584,1757475046350,-480.0,0.00013698,2]
[384607586,1757475046360,-480.0,0.00013698,2]
[384607588,1757475046369,-480.0,0.00013698,2]
[384607590,1757475046378,-480.0,0.00013698,2]
[384607592,1757475046388,-480.0,0.00013698,2]
[384607594,1757475046397,-480.0,0.00013698,2]
[384607596,1757475046406,-480.0,0.00013698,2]
[384607598,1757475046415,-480.0,0.00013698,2]
[384607600,1757475046424,-480.0,0.00013698,2]
[384607602,1757475046433,-480.0,0.00013698,2]
[384607604,1757475046443,-480.0,0.00013698,2]
[384607606,1757475046452,-480.0,0.00013698,2]
[384607608,1757475046462,-480.0,0.00013698,2]
[384607610,1757475046471,-480.0,0.00013698,2]
[384607612,1757475046480,-480.0,0.00013698,2]
[384607614,1757475046489,-480.0,0.00013698,2]
[384607616,1757475046500,-480.0,0.00013698,2]
[384607618,1757475046510,-480.0,0.00013698,2]
[384607620,1757475046520,-480.0,0.00013698,2]
[384607622,1757475046529,-480.0,0.00013698,2]
[384607624,1757475046538,-480.0,0.00013698,2]
[384607626,1757475046547,-480.0,0.00013698,2]
[384607628,1757475046557,-4004.97,0.00013698,2]
[384607630,1757475046566,-480.0,0.00013698,2]
[384607632,1757475046575,-483.13134201,0.00013698,2]
[384607634,1757475046584,-480.0,0.00013698,2]
[384607635,1757475046593,-480.0,0.00013698,2]
[384607637,1757475046602,-480.0,0.00013698,2]
[384607639,1757475046611,-229.20986853,0.00013698,2]
[384607641,1757475046621,-480.0,0.00013698,2]
[384607643,1757475046630,-480.0,0.00013698,2]
[384607645,1757475046639,-480.0,0.00013698,2]
[384607647,1757475046648,-480.0,0.00013698,2]
[384607649,1757475046658,-480.0,0.00013698,2]
[384607651,1757475046667,-480.0,0.00013698,2]
[384607653,1757475046677,-480.0,0.00013698,2]
[384607655,1757475046686,-480.0,0.00013698,2]
[384607657,1757475046695,-475.93481197,0.00013698,2]
[384607659,1757475046704,-480.0,0.00013698,2]
[384607661,1757475046713,-521.1332343,0.00013698,2]
[384607663,1757475046722,-480.0,0.00013698,2]
[384607665,1757475046731,-480.0,0.00013698,2]
[384607667,1757475046740,-480.0,0.00013698,2]
[384607669,1757475046750,-480.0,0.00013698,2]
[384607671,1757475046759,-480.0,0.00013698,2]
[384607673,1757475046769,-480.0,0.00013698,2]
[384607675,1757475046779,-480.0,0.00013698,2]
[384607677,1757475046788,-480.0,0.00013698,2]
[384607679,1757475046798,-480.0,0.00013698,2]
[384607681,1757475046807,-480.0,0.00013698,2]
[384607683,1757475046817,-486.69977026,0.00013698,2]
[384607685,1757475046826,-480.0,0.00013698,2]
[384607687,1757475046835,-480.0,0.00013698,2]
[384607689,1757475046845,-480.0,0.00013698,2]
[384607691,1757475046854,-480.0,0.00013698,2]
[384607693,1757475046863,-480.0,0.00013698,2]
[384607695,1757475046872,-480.0,0.00013698,2]
[384607697,1757475046881,-483.33600419,0.00013698,2]
[384607699,1757475046891,-480.0,0.00013698,2]
[384607701,1757475046900,-480.0,0.00013698,2]
[384607703,1757475046910,-480.0,0.00013698,2]
[384607705,1757475046919,-480.0,0.00013698,2]
[384607707,1757475046928,-480.0,0.00013698,2]
[384607709,1757475046937,-480.0,0.00013698,2]
[384607711,1757475046947,-480.0,0.00013698,2]
[384607712,1757475046956,-480.0,0.00013698,2]
[384607714,1757475046965,-480.0,0.00013698,2]
[384607716,1757475046974,-480.0,0.00013698,2]
[384607718,1757475046984,-480.0,0.00013698,2]
[384607720,1757475046993,-480.0,0.00013698,2]
[384607722,1757475047002,-846.77,0.00013698,2]
[384607724,1757475047011,-480.0,0.00013698,2]
[384607726,1757475047021,-480.0,0.00013698,2]
[384607728,1757475047031,-480.0,0.00013698,2]
[384607730,1757475047040,-480.0,0.00013698,2]
[384607732,1757475047049,-480.0,0.00013698,2]
[384607734,1757475047058,-1598.64,0.00013698,2]
[384607736,1757475047067,-480.0,0.00013698,2]
[384607738,1757475047076,-480.0,0.00013698,2]
[384607740,1757475047085,-480.0,0.00013698,2]
[384607742,1757475047098,-480.0,0.00013698,2]
[384607744,1757475047111,-480.0,0.00013698,2]
[384607746,1757475047120,-480.0,0.00013698,2]
[384607748,1757475047129,-480.0,0.00013698,2]
[384607750,1757475047139,-480.0,0.00013698,2]
[384607752,1757475047148,-480.0,0.00013698,2]
[384607754,1757475047157,-480.0,0.00013698,2]
[384607755,1757475047166,-480.0,0.00013698,2]
[384607757,1757475047176,-480.0,0.00013698,2]
[384607759,1757475047185,-480.0,0.00013698,2]
[384607761,1757475047195,-480.0,0.00013698,2]
[384607763,1757475047204,-480.0,0.00013698,2]
[384607765,1757475047214,-480.0,0.00013698,2]
[384607767,1757475047223,-480.0,0.00013698,2]
[384607769,1757475047232,-480.0,0.00013698,2]
[384607771,1757475047242,-480.0,0.00013698,2]
[384607773,1757475047252,-60.58336435,0.00013698,2]
[384609152,1757475252880,3264.37113033,0.00013158,2]
[384609153,1757475276054,676.32976413,0.00013158,2]
[384609154,1757475276078,2588.0413662,0.00013158,2]
[384609155,1757475300100,1920.29304418,0.00013158,2]
[384609156,1757475419906,3264.37113033,0.00013158,2]
[384609157,1757475427977,778.47,0.00012329,2]
[384609165,1757475850442,1064.24262117,0.00013194,2]
[384609166,1757475864347,263.16226215,0.00013287,2]
[384609176,1757475955300,873.0,0.00027397,120]
[384609178,1757476029122,-1064.24262117,0.00013462,2]
[384609179,1757476029648,-1064.24262117,0.00013598,2]
[384609180,1757476029668,-300.0,0.00013696,2]
[384609181,1757476029688,-211.63307019,0.00013697,2]
[384609182,1757476034508,1266.1710555,0.000145,9]
[384609184,1757476090973,972.765375,0.000273,120]
[384609189,1757476232297,-300.0,0.00013696,2]
[384609190,1757476232307,-210.0,0.00013696,2]
[384609191,1757476232316,-300.0,0.00013696,2]
[384609192,1757476232326,-1200.0,0.00013696,2]
[384609193,1757476232335,-476.63762595,0.00013697,2]
[384609194,1757476232344,-500.0,0.00013697,2]
[384609195,1757476232354,-442.20211512,0.00013697,2]
[384609196,1757476232363,-500.0,0.00013697,2]
[384609197,1757476232373,-320.78343571,0.00013697,2]
[384609198,1757476232382,-500.0,0.00013697,2]
[384609199,1757476232392,-500.0,0.00013697,2]
[384609200,1757476232401,-500.0,0.00013697,2]
[384609201,1757476232410,-480.0,0.00013698,2]
[384609202,1757476232419,-480.0,0.00013698,2]
[384609203,1757476232429,-465.46761817,0.00013698,2]
[384609255,1757477065521,121.42957597,0.00013287,2]
[384609256,1757477066046,36.46778132,0.00013287,2]
[384609261,1757477118947,264.7201795,0.00013157,2]
[384609266,1757477250159,-264.01183125,0.00013598,2]
[384609586,1757477438532,-300.0,0.00013597,2]
[384609587,1757477439044,-588.72182795,0.00013598,2]
[384609588,1757477439054,-931.21229355,0.00013598,2]
[384609589,1757477439063,-6930.0656785,0.00013598,2]
[384611306,1757478380599,173.44616975,0.00013263,2]
[384611311,1757478401391,173.44616975,0.00013229,2]
[384611312,1757478424950,173.44616975,0.00013229,2]
[384611313,1757478432118,-173.44616975,0.00013363,2]
[384611314,1757478432139,-814.81075683,0.00013498,2]
[384611315,1757478432160,-1151.97702544,0.00013498,2]
[384611316,1757478432181,-300.0,0.00013596,2]
[384611317,1757478432202,-300.0,0.00013597,2]
[384611318,1757478432223,-300.0,0.00013597,2]
[384611319,1757478432244,-1200.0,0.00013597,2]
[384611320,1757478432264,-300.0,0.00013597,2]
[384611321,1757478432288,-313.42038175,0.00013597,2]
[384611322,1757478432311,-500.0,0.00013597,2]
[384611323,1757478432333,-217.40008424,0.00013597,2]
[384611324,1757478432355,-500.0,0.00013597,2]
[384611325,1757478432376,-620.0,0.00013597,2]
[384611326,1757478432400,-500.0,0.00013597,2]
[384611327,1757478432425,-500.0,0.00013597,2]
[384611328,1757478432447,-600.0,0.00013597,2]
[384611329,1757478432471,-500.0,0.00013597,2]
[384611330,1757478432497,-500.0,0.00013597,2]
[384611331,1757478432519,-500.0,0.00013597,2]
[384611332,1757478432542,-500.0,0.00013597,2]
[384611333,1757478432566,-621.18973595,0.00013597,2]
[384611334,1757478432589,-500.0,0.00013597,2]
[384611335,1757478432612,-602.92158969,0.00013597,2]
[384611336,1757478432633,-1304.0,0.00013598,2]
[384611337,1757478432655,-1304.0,0.00013598,2]
[384611338,1757478432676,-1304.0,0.00013598,2]
[384611339,1757478432701,-1304.0,0.00013598,2]
[384611340,1757478432724,-1304.0,0.00013598,2]
[384611341,1757478432745,-1304.0,0.00013598,2]
[384611342,1757478432766,-1318.3656499,0.00013598,2]
[384611343,1757478432788,-417.61158982,0.00013598,2]
[384611356,1757478632690,-712.95941227,0.00013558,2]
[384611357,1757478632700,-294.87946926,0.00013596,2]
[384611360,1757478632711,-905.12053074,0.00013596,2]
[384611362,1757478632720,-300.0,0.00013596,2]
[384611364,1757478632733,-1061.55612837,0.00013596,2]
[384611373,1757478638587,-712.95941227,0.00013422,2]
[384611374,1757478638597,-138.44387163,0.00013596,2]
[384611375,1757478638606,-151.0,0.00013598,2]
[384611376,1757478638616,-151.0,0.00013598,2]
[384611377,1757478638625,-277.491236,0.00013598,2]
[384611378,1757478638635,-151.0,0.00013598,2]
[384611379,1757478638644,-151.0,0.00013598,2]
[384611380,1757478638653,-151.0,0.00013598,2]
[384611381,1757478638662,-151.0,0.00013598,2]
[384611382,1757478638672,-151.0,0.00013598,2]
[384611383,1757478638687,-161.38538351,0.00013598,2]
[384611384,1757478638711,-1142.61461649,0.00013598,2]
[384611385,1757478638722,-151.0,0.00013598,2]
[384611386,1757478638734,-151.0,0.00013598,2]
[384611387,1757478638744,-151.0,0.00013598,2]
[384611388,1757478638753,-151.0,0.00013598,2]
[384611389,1757478638762,-162.304272,0.00013598,2]
[384611390,1757478638771,-157.166693,0.00013598,2]
[384611391,1757478638781,-151.0,0.00013598,2]
[384611392,1757478638790,-151.0,0.00013598,2]
[384611393,1757478638800,-151.0,0.00013598,2]
[384611394,1757478638810,-151.0,0.00013598,2]
[384611395,1757478638819,-151.0,0.00013598,2]
[384611396,1757478638828,-151.0,0.00013598,2]
[384611397,1757478638838,-151.0,0.00013598,2]
[384611398,1757478638846,-2357.63668729,0.00013598,2]
[384611399,1757478638857,-34337.26072835,0.00013598,2]
[384611400,1757478638868,-3065.0469584,0.00013598,2]
[384611401,1757478640726,-4564.29271778,0.00013598,2]
[384611407,1757478643874,-41702.62511202,0.00013598,2]
[384611408,1757478643883,-19673.03929029,0.00013598,2]
[384611409,1757478643893,-14912.4127638,0.00013658,2]
[384611410,1757478643903,-5567.5869519,0.00013658,2]
[384611411,1757478643912,-4935.2842398,0.00013658,2]
[384611412,1757478643921,-151.0,0.00013658,2]
[384611413,1757478643930,-152.002336,0.00013658,2]
[384611414,1757478643939,-153.021712,0.00013658,2]
[384611415,1757478643948,-171.174895,0.00013658,2]
[384611416,1757478643957,-151.0,0.00013658,2]
[384611417,1757478643966,-151.0,0.00013658,2]
[384611418,1757478643975,-151.0,0.00013658,2]
[384611419,1757478643984,-286.050647,0.00013658,2]
[384611420,1757478643993,-151.0,0.00013658,2]
[384611421,1757478644002,-151.0,0.00013658,2]
[384611422,1757478644011,-151.0,0.00013658,2]
[384611423,1757478644020,-151.0,0.00013658,2]
[384611424,1757478644029,-151.0,0.00013658,2]
[384611425,1757478644038,-158.426595,0.00013658,2]
[384611426,1757478644046,-153.604784,0.00013658,2]
[384611427,1757478644055,-177.351558,0.00013658,2]
[384611428,1757478644065,-151.0,0.00013658,2]
[384611429,1757478644074,-224.941478,0.00013658,2]
[384611430,1757478644083,-151.0,0.00013658,2]
[384611431,1757478644092,-151.0,0.00013658,2]
[384611432,1757478644101,-151.0,0.00013658,2]
[384611433,1757478644110,-151.0,0.00013658,2]
[384611434,1757478644119,-162.512536,0.00013658,2]
[384611435,1757478644128,-504.86977798,0.00013658,2]
[384611436,1757478644137,-500.0,0.00013673,2]
[384611437,1757478644146,-500.0,0.00013673,2]
[384611438,1757478644155,-501.7068371,0.00013673,2]
[384611439,1757478644164,-500.31404069,0.00013673,2]
[384611440,1757478644173,-501.77133674,0.00013673,2]
[384611441,1757478644183,-482.30867304,0.00013673,2]
[384611442,1757478644192,-168.46552403,0.00013673,2]
[384611443,1757478644201,-501.85826548,0.00013673,2]
[384611444,1757478644212,-156.44179697,0.00013673,2]
[384611445,1757478644222,-263.94520981,0.00013673,2]
[384611446,1757478644231,-500.0,0.00013673,2]
[384611447,1757478644240,-500.0,0.00013673,2]
[384611448,1757478644249,-501.12543367,0.00013673,2]
[384611449,1757478644257,-500.0,0.00013673,2]
[384611450,1757478644266,-500.38140165,0.00013673,2]
[384611451,1757478644275,-500.0,0.00013673,2]
[384611452,1757478644284,-500.0,0.00013673,2]
[384611453,1757478644293,-500.0,0.00013673,2]
[384611454,1757478644302,-501.04069798,0.00013673,2]
[384611455,1757478644312,-500.0,0.00013673,2]
[384611456,1757478644321,-503.08097958,0.00013673,2]
[384611457,1757478644330,-500.46731704,0.00013673,2]
[384611458,1757478644339,-500.0,0.00013673,2]
[384611459,1757478644348,-500.0,0.00013673,2]
[384611460,1757478644357,-151.0,0.00013673,2]
[384611461,1757478644367,-151.0,0.00013673,2]
[384611463,1757478644376,-151.0,0.0001369,2]
[384611464,1757478644385,-151.0,0.0001369,2]
[384611465,1757478644394,-288.6894965,0.0001369,2]
[384611466,1757478644403,-2030.296672,0.0001369,2]
[384611467,1757478644412,-155.0,0.00013697,2]
[384611468,1757478644421,-367.92845393,0.00013697,2]
[384611469,1757478644430,-325.21056892,0.00013697,2]
[384611470,1757478644438,-151.0,0.00013698,2]
[384611471,1757478644447,-486.50878473,0.00013698,2]
[384611472,1757478644456,-480.0,0.00013698,2]
[384611473,1757478644465,-480.0,0.00013698,2]
[384611474,1757478644474,-480.0,0.00013698,2]
[384611475,1757478644484,-480.0,0.00013698,2]
[384611476,1757478644493,-480.0,0.00013698,2]
[384611477,1757478644502,-480.0,0.00013698,2]
[384611478,1757478644511,-480.0,0.00013698,2]
[384611479,1757478644520,-482.76121591,0.00013698,2]
[384611480,1757478644529,-480.0,0.00013698,2]
[384611481,1757478644538,-482.13757358,0.00013698,2]
[384611482,1757478644547,-480.0,0.00013698,2]
[384611483,1757478644556,-482.59727693,0.00013698,2]
[384611484,1757478644565,-482.39772361,0.00013698,2]
[384611485,1757478644574,-487.53045418,0.00013698,2]
[384611486,1757478644583,-529.58106825,0.00013698,2]
[384611487,1757478644592,-484.57458083,0.00013698,2]
[384611488,1757478644601,-480.0,0.00013698,2]
[384611489,1757478644610,-151.0,0.00013698,2]
[384611490,1757478644619,-160.042757,0.00013698,2]
[384611491,1757478644628,-480.0,0.00013698,2]
[384611492,1757478644637,-480.0,0.00013698,2]
[384611493,1757478644647,-480.0,0.00013698,2]
[384611494,1757478644656,-480.0,0.00013698,2]
[384611495,1757478644665,-480.0,0.00013698,2]
[384611496,1757478644675,-480.0,0.00013698,2]
[384611497,1757478644684,-166.358716,0.00013698,2]
[384611498,1757478644693,-480.0,0.00013698,2]
[384611499,1757478644703,-480.0,0.00013698,2]
[384611500,1757478644712,-480.0,0.00013698,2]
[384611501,1757478644722,-480.0,0.00013698,2]
[384611502,1757478644732,-480.0,0.00013698,2]
[384611503,1757478644744,-480.4,0.00013698,2]
[384611504,1757478644753,-480.0,0.00013698,2]
[384611505,1757478644762,-480.0,0.00013698,2]
[384611506,1757478644772,-480.0,0.00013698,2]
[384611507,1757478644783,-480.0,0.00013698,2]
[384611508,1757478644792,-480.0,0.00013698,2]
[384611509,1757478644802,-480.0,0.00013698,2]
[384611510,1757478644814,-480.0,0.00013698,2]
[384611511,1757478644826,-480.0,0.00013698,2]
[384611512,1757478644835,-601.7623293,0.00013698,2]
[384611513,1757478644844,-480.0,0.00013698,2]
[384611514,1757478644854,-300.74821187,0.00013698,2]
[384611515,1757478644864,-480.0,0.00013698,2]
[384611516,1757478644873,-480.0,0.00013698,2]
[384611517,1757478644883,-480.0,0.00013698,2]
[384611518,1757478644893,-435.11001231,0.00013698,2]
[384611519,1757478644902,-480.0,0.00013698,2]
[384611520,1757478644911,-480.0,0.00013698,2]
[384611521,1757478644921,-483.38554595,0.00013698,2]
[384611522,1757478644930,-487.46636324,0.00013698,2]
[384611523,1757478644939,-480.0,0.00013698,2]
[384611524,1757478644948,-480.0,0.00013698,2]
[384611525,1757478644957,-480.0,0.00013698,2]
[384611526,1757478644966,-377.85111535,0.00013698,2]
[384611527,1757478644975,-480.0,0.00013698,2]
[384611528,1757478644984,-497.23085062,0.00013698,2]
[384611529,1757478644993,-480.0,0.00013698,2]
[384611530,1757478645002,-480.0,0.00013698,2]
[384611531,1757478645012,-302.6070762,0.00013698,2]
[384611532,1757478645022,-480.0,0.00013698,2]
[384611533,1757478645031,-480.0,0.00013698,2]
[384611534,1757478645041,-433.22137993,0.00013698,2]
[384611535,1757478645050,-480.0,0.00013698,2]